fUSD/lending_fUSD_20251214
["ID","MTS","AMOUNT","RATE_DAILY","PERIOD"]
[398496444,1765750240781,-150.59063363,0.00016562,2]
[398496445,1765750240791,-150.0,0.00016562,2]
[398496446,1765750240800,-339.0,0.00016568,2]
[398496447,1765750240809,-706.0,0.00016595,2]
[398496448,1765750240818,-150.0,0.000166,2]
[398496449,1765750241218,-150.23382477,0.00016622,2]
[398496450,1765750241251,-150.0,0.00016622,2]
[398496451,1765750241260,-150.0,0.00016622,2]
[398496452,1765750241270,-150.0,0.00016622,2]
[398496453,1765750241280,-221.0,0.00016624,2]
[398496454,1765750241289,-1537.83416706,0.0001666,2]
[398496455,1765750241299,-150.0,0.00016699,2]
[398496456,1765750241309,-150.0,0.00016699,2]
[398496457,1765750241318,-500.0,0.00016699,2]
[398496458,1765750241327,-500.0,0.00016699,2]
[398496459,1765750241337,-150.0,0.00016699,2]
[398496460,1765750241346,-500.0,0.00016699,2]
[398496461,1765750241355,-150.0,0.00016699,2]
[398496462,1765750241365,-150.0,0.00016699,2]
[398496463,1765750241375,-500.0,0.00016699,2]
[398496464,1765750241384,-500.0,0.00016699,2]
[398496465,1765750241393,-1717.0,0.00016699,2]
[398496466,1765750241403,-500.0,0.00016699,2]
[398496467,1765750241413,-643.24107785,0.00016699,2]
[398496468,1765750241422,-500.0,0.00016699,2]
[398496469,1765750241431,-500.0,0.00016699,2]
[398496470,1765750241440,-500.0,0.00016699,2]
[398496471,1765750241449,-150.0,0.00016699,2]
[398496472,1765750241458,-500.0,0.00016699,2]
[398496473,1765750241467,-150.0,0.00016699,2]
[398496474,1765750241477,-150.0,0.00016699,2]
[398496475,1765750241486,-784.4956798,0.000167,2]
[398496476,1765750241496,-500.0,0.0001671,2]
[398496477,1765750241505,-500.0,0.0001671,2]
[398496478,1765750241514,-609.67599965,0.0001671,2]
[398496479,1765750241523,-193.64493313,0.00016716,2]
[398496480,1765750241533,-169.53152199,0.00016716,2]
[398496481,1765750241542,-150.0,0.00016726,2]
[398496482,1765750241551,-157.26006085,0.00016726,2]
[398496483,1765750241559,-150.50253545,0.00016726,2]
[398496484,1765750241568,-150.0,0.00016726,2]
[398496485,1765750241579,-150.0,0.00016726,2]
[398496486,1765750241592,-150.0,0.00016726,2]
[398496487,1765750241601,-150.0,0.00016726,2]
[398496488,1765750241610,-2124.53520799,0.00016736,2]
[398496489,1765750241619,-1315.87193328,0.00016736,2]
[398496490,1765750241630,-500.0,0.0001674,2]
[398496491,1765750241639,-500.0,0.0001674,2]
[398496492,1765750241648,-500.0,0.0001674,2]
[398496493,1765750241659,-2124.53520795,0.00016754,2]
[398496494,1765750241668,-253.94613988,0.00016759,2]
[398496495,1765750241677,-200.0,0.00016759,2]
[398496496,1765750241686,-1315.87193322,0.00016759,2]
[398496497,1765750241695,-500.0,0.00016767,2]
[398496498,1765750241705,-2124.53520795,0.00016772,2]
[398496499,1765750241714,-644.09,0.00016776,2]
[398496500,1765750241723,-200.0,0.00016777,2]
[398496501,1765750241732,-313.0217118,0.00016777,2]
[398496502,1765750241741,-1315.87193322,0.00016783,2]
[398496503,1765750241750,-2124.53520795,0.00016791,2]
[398496504,1765750241759,-1315.87193322,0.00016806,2]
[398496505,1765750241768,-2124.53520795,0.00016809,2]
[398496506,1765750241777,-1820.459,0.00016826,2]
[398496507,1765750241786,-178.128,0.00016826,2]
[398496508,1765750241795,-2124.53520795,0.00016827,2]
[398496509,1765750241804,-1315.87193322,0.0001683,2]
[398496510,1765750241812,-2654.76618,0.0001683,2]
[398496511,1765750241821,-150.0,0.00016836,2]
[398496512,1765750241830,-478.10823443,0.00016836,2]
[398496513,1765750241840,-500.0,0.00016836,2]
[398496514,1765750241849,-150.0,0.00016836,2]
[398496515,1765750241858,-253.60065798,0.00016836,2]
[398496516,1765750241867,-150.0,0.00016836,2]
[398496517,1765750241876,-201.55115124,0.00016836,2]
[398496518,1765750241886,-500.0,0.00016836,2]
[398496519,1765750241894,-500.0,0.00016836,2]
[398496520,1765750241903,-1717.0,0.00016836,2]
[398496521,1765750241913,-500.0,0.00016836,2]
[398496522,1765750241922,-500.0,0.00016836,2]
[398496523,1765750241931,-500.0,0.00016836,2]
[398496524,1765750241940,-500.0,0.00016836,2]
[398496525,1765750241949,-150.0,0.00016836,2]
[398496526,1765750241958,-500.0,0.00016836,2]
[398496527,1765750241967,-272.31261393,0.00016836,2]
[398496528,1765750241976,-2124.53520795,0.00016845,2]
[398496529,1765750241986,-1196.0,0.00016846,2]
[398496530,1765750241996,-911.0,0.00016848,2]
[398496531,1765750242006,-4797.0,0.00016848,2]
[398496532,1765750242017,-2426.0,0.00016848,2]
[398496533,1765750242026,-572.018,0.00016848,2]
[398496534,1765750242035,-1315.87193322,0.00016853,2]
[398496535,1765750242045,-150.0,0.00016863,2]
[398496536,1765750242055,-152.52135053,0.00016863,2]
[398496537,1765750242064,-150.0,0.00016863,2]
[398496538,1765750242073,-2124.53520795,0.00016864,2]
[398496539,1765750242082,-200.0,0.00016864,2]
[398496540,1765750242092,-2124.53520795,0.00016882,2]
[398496541,1765750242101,-174.16455045,0.00016899,2]
[398496542,1765750242111,-11687.54920346,0.000169,2]
[398496543,1765750242122,-10000.0,0.000169,2]
[398496544,1765750242131,-2124.53520795,0.000169,2]
[398496545,1765750242141,-1485.06056151,0.000169,2]
[398496546,1765750242151,-9416.41748661,0.000169,2]
[398496547,1765750242160,-5635.0,0.000169,2]
[398496548,1765750242170,-168.0,0.00016903,2]
[398496549,1765750242179,-339.0,0.00016905,2]
[398496550,1765750242188,-481.15230225,0.00016908,2]
[398496551,1765750242198,-168.0,0.00016941,2]
[398496552,1765750242207,-168.0,0.00016959,2]
[398496553,1765750242216,-1000.0,0.0001697,2]
[398496554,1765750242226,-1000.0,0.0001697,2]
[398496555,1765750242235,-1000.0,0.0001697,2]
[398496556,1765750242245,-1000.0,0.0001697,2]
[398496557,1765750242255,-1000.0,0.0001697,2]
[398496558,1765750242264,-152.21927846,0.00016973,2]
[398496559,1765750242273,-500.0,0.00016973,2]
[398496560,1765750242282,-500.0,0.00016973,2]
[398496561,1765750242292,-500.0,0.00016973,2]
[398496562,1765750242302,-500.0,0.00016973,2]
[398496563,1765750242311,-163.59244045,0.00016973,2]
[398496564,1765750242323,-500.0,0.00016973,2]
[398496565,1765750242333,-500.0,0.00016973,2]
[398496566,1765750242342,-500.0,0.00016973,2]
[398496567,1765750242351,-500.0,0.00016973,2]
[398496568,1765750242360,-500.0,0.00016973,2]
[398496569,1765750242369,-500.0,0.00016973,2]
[398496570,1765750242378,-332.41532846,0.00016973,2]
[398496571,1765750242387,-500.0,0.00016973,2]
[398496572,1765750242396,-566.76008115,0.00016973,2]
[398496573,1765750242406,-211.96165327,0.00016973,2]
[398496574,1765750242415,-500.0,0.00016973,2]
[398496575,1765750242424,-246.55406266,0.00016973,2]
[398496576,1765750242433,-200.0,0.00016973,2]
[398496577,1765750242442,-200.0,0.00016973,2]
[398496578,1765750242451,-500.0,0.00016973,2]
[398496579,1765750242460,-500.0,0.00016973,2]
[398496580,1765750242469,-1717.0,0.00016973,2]
[398496581,1765750242479,-450.0,0.00016973,2]
[398496582,1765750242488,-500.0,0.00016973,2]
[398496583,1765750242497,-565.4333116,0.00016973,2]
[398496584,1765750242506,-479.0889974,0.00016973,2]
[398496585,1765750242515,-150.0,0.00016973,2]
[398496586,1765750242525,-150.0,0.00016973,2]
[398496587,1765750242533,-500.0,0.00016973,2]
[398496588,1765750242543,-150.0,0.00016973,2]
[398496589,1765750242552,-150.0,0.00016976,2]
[398496590,1765750242561,-150.0,0.00016976,2]
[398496591,1765750242570,-150.0,0.00016976,2]
[398496592,1765750242583,-150.121,0.00016976,2]
[398496593,1765750242592,-150.0,0.00016976,2]
[398496594,1765750242602,-150.0,0.00016976,2]
[398496595,1765750242611,-150.0,0.00016976,2]
[398496596,1765750242620,-150.0,0.00016976,2]
[398496597,1765750242629,-150.0,0.00016976,2]
[398496598,1765750242639,-3451.0,0.00016976,2]
[398496599,1765750242649,-1607.0,0.00016976,2]
[398496600,1765750242658,-1324.0,0.00016976,2]
[398496601,1765750242667,-1261.0,0.00016976,2]
[398496602,1765750242676,-589.0,0.00016976,2]
[398496603,1765750242685,-164.87838723,0.00016983,2]
[398496604,1765750242694,-295.31439554,0.00016986,2]
[398496605,1765750242703,-279.21352969,0.00016986,2]
[398496606,1765750242713,-150.0,0.00016986,2]
[398496607,1765750242722,-176.97375711,0.00016986,2]
[398496608,1765750242731,-150.0,0.00016986,2]
[398496609,1765750242740,-150.0,0.00016986,2]
[398496610,1765750242749,-150.0,0.00016986,2]
[398496611,1765750242757,-205.71936407,0.00016986,2]
[398496612,1765750242766,-150.87,0.00016986,2]
[398496613,1765750242776,-196.93257168,0.00016989,2]
[398496614,1765750242784,-196.93257168,0.0001699,2]
[398496615,1765750242793,-151.0,0.00016996,2]
[398496616,1765750242802,-151.0,0.00016997,2]
[398496617,1765750242812,-1139.7502052,0.00016999,5]
[398496618,1765750242820,-1139.7502052,0.00016999,5]
[398496619,1765750242829,-1139.75020521,0.00016999,5]
[398496620,1765750242838,-239.10838329,0.00016999,2]
[398496621,1765750242847,-918897.2779969,0.00016999,2]
[398496622,1765750242856,-500.0,0.00016999,2]
[398496623,1765750242865,-500.0,0.00016999,2]
[398496624,1765750242875,-500.0,0.00016999,2]
[398496625,1765750242884,-500.0,0.00016999,2]
[398496626,1765750242893,-500.0,0.00016999,2]
[398496627,1765750242902,-500.0,0.00016999,2]
[398496628,1765750242911,-500.0,0.00016999,3]
[398496629,1765750242920,-500.0,0.00016999,2]
[398496630,1765750242929,-500.0,0.00016999,2]
[398496631,1765750242938,-300.0,0.00016999,2]
[398496632,1765750242947,-6186.8601381,0.00016999,2]
[398496633,1765750242956,-187.40476,0.00016999,2]
[398496634,1765750242965,-300.0,0.00016999,2]
[398496635,1765750242974,-200.0,0.00017,2]
[398496636,1765750242983,-4777054.33863819,0.00017,2]
[398496639,1765750243049,-2299.81582006,0.00017,2]
[398496711,1765750752173,1000.0,0.00013699,2]
[398496732,1765750842993,1644.69,0.00015686,2]
[398496757,1765750988962,999.0,0.00015663,3]
[398496777,1765751065658,186.82,0.00012594,2]
[398496784,1765751119061,150.0,0.00015288,2]
[398496785,1765751119353,150.0,0.00015288,2]
[398496786,1765751119430,150.0,0.00015288,2]
[398496787,1765751125255,150.0,0.00015288,2]
[398496790,1765751126676,150.0,0.00015288,2]
[398496791,1765751126831,150.0,0.00015288,2]
[398496792,1765751127499,176.45823881,0.00015288,2]
[398496793,1765751131292,150.0,0.00015288,2]
[398496794,1765751131367,150.0,0.00015288,2]
[398496795,1765751139525,150.0,0.00015288,2]
[398496796,1765751141638,150.0,0.00015288,2]
[398496814,1765751244615,-403.3430635,0.00015734,2]
[398496815,1765751246037,777.3,7.803e-05,2]
[398496816,1765751246274,777.3,8.214e-05,2]
[398496817,1765751246477,777.3,8.625e-05,2]
[398496818,1765751246678,777.3,9.035e-05,2]
[398496819,1765751246895,777.3,9.446e-05,2]
[398496820,1765751249089,777.3,9.857e-05,2]
[398496821,1765751249154,777.3,0.00010267,2]
[398496822,1765751249206,777.3,0.00010678,2]
[398496823,1765751249251,777.3,0.00011089,2]
[398496824,1765751249312,777.3,0.00011499,2]
[398496825,1765751249369,777.3,0.0001191,2]
[398496826,1765751249414,777.3,0.00012321,2]
[398496827,1765751249440,-250.0,0.00015734,2]
[398496828,1765751249498,522.41,0.00012731,2]
[398496829,1765751249525,254.89,0.00012731,2]
[398496830,1765751249587,777.3,0.00013142,2]
[398496831,1765751249643,777.3,0.00013553,2]
[398496832,1765751249706,777.3,0.00013963,2]
[398496833,1765751249765,777.3,0.00014374,2]
[398496834,1765751249817,777.3,0.00014785,2]
[398496835,1765751249869,777.3,0.00015196,2]
[398496836,1765751250008,777.3,0.00015606,2]
[398496837,1765751251866,-193.0,0.00015734,2]
[398496838,1765751253388,-195.0,0.00015734,2]
[398496839,1765751255166,-195.0,0.00015734,2]
[398496840,1765751257406,-166.69283378,0.00015734,2]
[398496841,1765751265250,2622.0,0.000116,5]
[398496846,1765751287727,155.152779,7.945e-05,2]
[398496851,1765751306335,250.0,0.00015536,2]
[398496877,1765751431716,-300.0,0.00015734,2]
[398496878,1765751431727,-4749.76410272,0.00015734,2]
[398496880,1765751431736,-250.0,0.00015734,2]
[398496882,1765751431745,-281.0,0.00015734,2]
[398496884,1765751431754,-193.0,0.00015802,2]
[398496886,1765751431763,-195.0,0.00015802,2]
[398496887,1765751431773,-250.0,0.00015843,2]
[398496888,1765751431782,-195.0,0.00015938,2]
[398496889,1765751431792,-307.92,0.00016007,2]
[398496890,1765751431801,-300.0,0.00016069,2]
[398496891,1765751431810,-1200.0,0.00016069,2]
[398496892,1765751431819,-300.0,0.00016069,2]
[398496893,1765751431828,-11781.25709082,0.0001607,2]
[398496894,1765751431845,-10601.67080775,0.0001607,2]
[398496895,1765751431860,-22275.4529305,0.0001607,2]
[398496896,1765751431873,-2361.99616942,0.0001607,2]
[398496897,1765751431882,-14.13383058,0.00016073,2]
[398496898,1765751431904,-535.86616942,0.00016073,2]
[398496899,1765751431912,-568.95832152,0.00016074,2]
[398496900,1765751431923,-748.69638418,0.00016074,2]
[398496901,1765751431966,-734.27815119,0.00016074,2]
[398496902,1765751431977,-65.92894311,0.00016074,2]
[398496903,1765751431986,-150.0,0.00016137,2]
[398496904,1765751431995,-310.89062379,0.00016149,2]
[398496905,1765751432006,-267.31861929,0.00016149,2]
[398496906,1765751432015,-200.0,0.00016149,2]
[398496907,1765751432024,-207.4,0.00016149,2]
[398496909,1765751432033,-25.28138071,0.00016149,2]
[398496911,1765751432044,-189.79241929,0.00016149,2]
[398496913,1765751432053,-223.0315306,0.00016149,2]
[398496914,1765751432062,-231.28369723,0.00016149,2]
[398496915,1765751432071,-239.84119403,0.00016149,2]
[398496916,1765751432080,-248.71531821,0.00016149,2]
[398496917,1765751432089,-257.91778498,0.00016149,2]
[398496919,1765751432097,-267.46074303,0.00016149,2]
[398496921,1765751432107,-48.45323702,0.00016172,2]
[398496923,1765751432117,-451.54676298,0.00016172,2]
[398496926,1765751432127,-500.0,0.00016172,2]
[398496929,1765751432136,-483.55619092,0.00016172,2]
[398496937,1765751437837,-500.0,0.00016171,2]
[398496938,1765751437849,-203.34946611,0.00016171,2]
[398496939,1765751437861,-119.27841789,0.00016171,2]
[398496940,1765751437897,-380.72158211,0.00016171,2]
[398496941,1765751437909,-159.29061835,0.00016171,2]
[398496942,1765751437932,-280.80017013,0.00016171,2]
[398496943,1765751437957,-59.90921152,0.00016171,2]
[398496944,1765751437968,-500.0,0.00016171,2]
[398496945,1765751437980,-500.0,0.00016171,2]
[398496946,1765751437993,-500.0,0.00016171,2]
[398496947,1765751438005,-500.0,0.00016171,2]
[398496948,1765751438016,-300.0,0.00016173,2]
[398496949,1765751438034,-1219.5360606,0.00016173,2]
[398496950,1765751438049,-1816.6069197,0.00016173,2]
[398496951,1765751438059,-151.0,0.00016173,2]
[398496952,1765751438071,-1111.0,0.00016173,2]
[398496954,1765751438083,-357.0,0.00016173,2]
[398496956,1765751438094,-325.1080237,0.00016173,2]
[398496958,1765751438106,-277.35679052,0.00016173,2]
[398496960,1765751438116,-500.0,0.00016174,2]
[398496962,1765751438135,-500.0,0.00016174,2]
[398496964,1765751438147,-500.0,0.00016174,2]
[398496966,1765751438158,-1000.0,0.00016174,2]
[398496968,1765751438173,-500.0,0.00016174,2]
[398496971,1765751438184,-574.12855637,0.00016174,2]
[398496973,1765751438195,-164.30824554,0.00016174,2]
[398496975,1765751438206,-1000.0,0.00016174,2]
[398496977,1765751438217,-500.0,0.00016174,2]
[398496979,1765751438228,-312.84097632,0.00016174,2]
[398496981,1765751438239,-1000.0,0.00016174,2]
[398496983,1765751438250,-500.0,0.00016174,2]
[398496985,1765751438261,-1000.0,0.00016174,2]
[398496987,1765751438271,-412.36279561,0.00016174,2]
[398496988,1765751438282,-1000.0,0.00016174,2]
[398496989,1765751438293,-500.0,0.00016174,2]
[398496990,1765751438303,-1000.0,0.00016174,2]
[398496991,1765751438314,-250.0,0.00016174,2]
[398496992,1765751438325,-1000.0,0.00016174,2]
[398496993,1765751438335,-250.0,0.00016174,2]
[398496994,1765751438345,-1000.0,0.00016174,2]
[398496995,1765751438355,-250.0,0.00016174,2]
[398496996,1765751438366,-1000.0,0.00016174,2]
[398496997,1765751438377,-46.97372249,0.00016174,2]
[398496998,1765751438396,-453.02627751,0.00016174,2]
[398496999,1765751438411,-250.0,0.00016174,2]
[398497000,1765751438421,-180.61648249,0.00016174,2]
[398497001,1765751438433,-319.38351751,0.00016174,2]
[398497002,1765751438443,-1000.0,0.00016174,2]
[398497003,1765751438454,-250.0,0.00016174,2]
[398497004,1765751438464,-1000.0,0.00016174,2]
[398497005,1765751438474,-500.0,0.00016174,2]
[398497006,1765751438484,-250.0,0.00016174,2]
[398497007,1765751438494,-1000.0,0.00016174,2]
[398497008,1765751438504,-500.0,0.00016174,2]
[398497009,1765751438514,-250.0,0.00016174,2]
[398497010,1765751438524,-796.61723674,0.00016174,2]
[398497011,1765751438536,-199.50128323,0.00016174,2]
[398497012,1765751438547,-522.21560024,0.00016174,2]
[398497013,1765751438556,-250.0,0.00016174,2]
[398497014,1765751438566,-250.0,0.00016174,2]
[398497016,1765751438576,-250.0,0.00016174,2]
[398497018,1765751438586,-1000.0,0.00016174,2]
[398497020,1765751438596,-403.86524236,0.00016174,2]
[398497022,1765751438606,-500.0,0.00016174,2]
[398497024,1765751438616,-641.89228042,0.00016174,2]
[398497026,1765751438628,-200.0,0.00016174,2]
[398497028,1765751438640,-500.0,0.00016174,2]
[398497031,1765751438650,-291.99693193,0.00016174,2]
[398497033,1765751438672,-208.00306807,0.00016174,2]
[398497035,1765751438681,-151.0,0.00016174,2]
[398497037,1765751438691,-151.0,0.00016174,2]
[398497039,1765751438701,-151.0,0.00016174,2]
[398497042,1765751438712,-151.0,0.00016174,2]
[398497043,1765751438722,-151.0,0.00016174,2]
[398497046,1765751438732,-151.0,0.00016174,2]
[398497048,1765751438742,-200.0,0.00016174,2]
[398497050,1765751438752,-151.0,0.00016174,2]
[398497052,1765751438765,-500.0,0.00016174,2]
[398497054,1765751438775,-5988.04,0.00016183,2]
[398497056,1765751438784,-150.99,0.00016183,2]
[398497058,1765751438794,-346.54,0.00016183,2]
[398497060,1765751438804,-9999.99,0.00016183,2]
[398497063,1765751438814,-10721.68,0.00016183,2]
[398497065,1765751438824,-10930.80608279,0.000162,5]
[398497067,1765751438834,-1111.0,0.00016228,2]
[398497069,1765751438844,-1111.0,0.00016283,2]
[398497071,1765751438854,-250.0,0.00016306,2]
[398497073,1765751438864,-1111.0,0.00016338,2]
[398497075,1765751438873,-512.24000868,0.00016364,2]
[398497077,1765751438889,-337.46,0.00016365,2]
[398497079,1765751438899,-257.51449002,0.00016371,2]
[398497081,1765751438908,-304.18,0.00016382,2]
[398497083,1765751438919,-765.52514472,0.00016393,2]
[398497085,1765751438931,-345.47485528,0.00016393,2]
[398497087,1765751438942,-514.0,0.00016395,2]
[398497089,1765751438953,-1713.0,0.00016427,2]
[398497092,1765751438967,-1111.0,0.00016448,2]
[398497094,1765751438977,-2117.3118708,0.00016474,2]
[398497096,1765751438987,-1032.30334968,0.00016503,2]
[398497207,1765751440025,-78.69665032,0.00016503,2]
[398497209,1765751440034,-887.0,0.00016509,2]
[398497211,1765751440044,-1594.0,0.00016542,2]
[398497213,1765751440053,-1000.0,0.00016575,2]
[398497215,1765751440063,-420.05454701,0.00016593,2]
[398497218,1765751440072,-170.0,0.00016594,2]
[398497220,1765751440082,-1306.0,0.000166,2]
[398497222,1765751440091,-500.0,0.00016642,2]
[398497224,1765751440100,-500.0,0.00016642,2]
[398497226,1765751440109,-1025.22277804,0.0001666,2]
[398497228,1765751440119,-1806.31453415,0.00016669,2]
[398497230,1765751440130,-500.0,0.00016699,2]
[398497232,1765751440139,-1452.0,0.00016699,2]
[398497234,1765751440149,-150.0,0.00016699,2]
[398497236,1765751440159,-500.0,0.00016699,2]
[398497238,1765751440169,-500.0,0.00016699,2]
[398497240,1765751440181,-250.0,0.00016699,2]
[398497242,1765751440190,-150.0,0.00016699,2]
[398497244,1765751440200,-150.0,0.00016699,2]
[398497246,1765751440210,-150.0,0.00016699,2]
[398497248,1765751440220,-150.0,0.00016699,2]
[398497250,1765751440230,-500.0,0.00016699,2]
[398497252,1765751440240,-150.0,0.00016699,2]
[398497254,1765751440250,-150.0,0.00016699,2]
[398497256,1765751440261,-150.0,0.00016699,2]
[398497258,1765751440272,-200.0,0.00016699,2]
[398497260,1765751440282,-500.0,0.0001671,2]
[398497263,1765751440292,-200.72388215,0.00016712,2]
[398497265,1765751440302,-500.0,0.00016716,2]
[398497267,1765751440312,-500.0,0.00016716,2]
[398497269,1765751440322,-574.12855637,0.00016722,2]
[398497271,1765751440331,-152.29872896,0.00016722,2]
[398497273,1765751440341,-1719.29655892,0.00016725,2]
[398497275,1765751440351,-168.0,0.00016734,2]
[398497277,1765751440360,-983.71683824,0.00016745,2]
[398497279,1765751440370,-328.96798334,0.00016764,2]
[398497281,1765751440382,-328.9679833,0.00016783,2]
[398497282,1765751440392,-328.9679833,0.00016803,2]
[398497284,1765751440402,-328.9679833,0.00016822,2]
[398497287,1765751440412,-1456.367,0.00016833,2]
[398497289,1765751440421,-500.0,0.00016836,2]
[398497291,1765751440431,-1452.0,0.00016836,2]
[398497293,1765751440440,-150.0,0.00016836,2]
[398497295,1765751440449,-500.0,0.00016836,2]
[398497297,1765751440458,-500.0,0.00016836,2]
[398497298,1765751440468,-150.0,0.00016836,2]
[398497301,1765751440477,-150.0,0.00016836,2]
[398497303,1765751440487,-150.0,0.00016836,2]
[398497305,1765751440497,-500.0,0.00016836,2]
[398497307,1765751440507,-150.0,0.00016836,2]
[398497309,1765751440516,-328.9679833,0.00016842,2]
[398497311,1765751440526,-328.9679833,0.00016861,2]
[398497313,1765751440535,-200.0,0.00016864,2]
[398497315,1765751440545,-238.0,0.00016872,2]
[398497317,1765751440554,-328.9679833,0.00016881,2]
[398497319,1765751440563,-500.0,0.00016896,2]
[398497321,1765751440573,-500.0,0.00016896,2]
[398497322,1765751440583,-500.0,0.00016899,2]
[398497325,1765751440592,-239.10838329,0.00016899,2]
[398497327,1765751440602,-902.749,0.000169,2]
[398497329,1765751440612,-328.9679833,0.000169,2]
[398497331,1765751440621,-159.67108242,0.000169,2]
[398497333,1765751440633,-1000.0,0.000169,2]
[398497335,1765751440643,-481.15230225,0.00016914,2]
[398497337,1765751440652,-500.0,0.00016973,2]
[398497339,1765751440662,-169.15209317,0.00016973,2]
[398497341,1765751440671,-500.0,0.00016973,2]
[398497343,1765751440681,-500.0,0.00016973,2]
[398497345,1765751440690,-428.98051479,0.00016973,2]
[398497347,1765751440700,-500.0,0.00016973,2]
[398497349,1765751440709,-500.0,0.00016973,2]
[398497351,1765751440718,-281.72381336,0.00016973,2]
[398497353,1765751440727,-500.0,0.00016973,2]
[398497355,1765751440737,-500.0,0.00016973,2]
[398497357,1765751440746,-500.0,0.00016973,2]
[398497359,1765751440758,-500.0,0.00016973,2]
[398497361,1765751440774,-1452.0,0.00016973,2]
[398497363,1765751440793,-150.0,0.00016973,2]
[398497365,1765751440812,-500.0,0.00016973,2]
[398497367,1765751440831,-500.0,0.00016973,2]
[398497369,1765751440852,-206.48269393,0.00016973,2]
[398497371,1765751440874,-500.0,0.00016973,2]
[398497373,1765751440895,-150.0,0.00016973,2]
[398497375,1765751440916,-200.0,0.00016973,2]
[398497377,1765751440936,-500.0,0.00016973,2]
[398497379,1765751440956,-150.0,0.00016973,2]
[398497381,1765751440977,-500.0,0.00016975,2]
[398497383,1765751440996,-500.0,0.00016975,2]
[398497385,1765751441006,-1261.0,0.00016976,2]
[398497387,1765751441015,-589.0,0.00016976,2]
[398497389,1765751441024,-1196.0,0.00016976,2]
[398497391,1765751441033,-911.0,0.00016976,2]
[398497393,1765751441043,-3451.0,0.00016976,2]
[398497395,1765751441055,-1607.0,0.00016976,2]
[398497397,1765751441064,-613.095,0.00016976,2]
[398497399,1765751441075,-150.85899699,0.00016976,2]
[398497401,1765751441084,-500.0,0.00016986,2]
[398497403,1765751441093,-150.0,0.00016986,2]
[398497468,1765751441724,-150.0,0.00016986,2]
[398497469,1765751441734,-150.0,0.00016986,2]
[398497470,1765751441743,-150.0,0.00016986,2]
[398497471,1765751441752,-150.0,0.00016986,2]
[398497472,1765751441762,-53472.36,0.00016986,2]
[398497473,1765751441771,-164.22,0.00016989,2]
[398497474,1765751441780,-164.22,0.0001699,2]
[398497475,1765751441790,-513.81694351,0.00016998,2]
[398497476,1765751441799,-539.56324415,0.00016998,2]
[398497477,1765751441808,-1139.7502052,0.00016999,5]
[398497478,1765751441817,-1139.75020521,0.00016999,5]
[398497479,1765751441827,-500.0,0.00016999,2]
[398497480,1765751441836,-500.0,0.00016999,2]
[398497481,1765751441845,-500.0,0.00016999,2]
[398497482,1765751441854,-519.30985649,0.00016999,2]
[398497483,1765751441863,-500.0,0.00016999,2]
[398497484,1765751441873,-500.0,0.00016999,2]
[398497485,1765751441883,-500.0,0.00016999,2]
[398497486,1765751441893,-300.0,0.00016999,2]
[398497487,1765751441903,-197014.3013104,0.00016999,2]
[398497488,1765751441912,-4584.0,0.00017,2]
[398497489,1765751441921,-187.40476,0.00017,2]
[398497490,1765751441931,-2631597.98089057,0.00017,2]
[398497491,1765751441940,-1842994.99709366,0.00017,2]
[398497514,1765751447975,-1000.0,0.00016135,2]